Workbook

Sheet Sheet1
A1: Income Statement - 12 Month
A2: Exported On: 03/05/2026 11:32 AM
A4: HPI Property Management
A5: Properties: 17910 Old Monte Rio Road - 17910 Old Monte Rio Rd Guerneville, CA 95446
A6: Fund Type: All
A7: Period Range: Jan 2024 to Dec 2024
A8: Accounting Basis: Cash
A9: Level of Detail: Detail View
A10: Include Zero Balance GL Accounts: No
A12: Account Name | B12: Jan 2024 | C12: Feb 2024 | D12: Mar 2024 | E12: Apr 2024 | F12: May 2024 | G12: Jun 2024 | H12: Jul 2024 | I12: Aug 2024 | J12: Sep 2024 | K12: Oct 2024 | L12: Nov 2024 | M12: Dec 2024 | N12: Total
A13: Operating Income & Expense
A14: Income
A15: RENTS
A16: Rent Income | B16: 3225 | C16: 3225 | D16: 3225 | E16: 3225 | F16: 3225 | G16: 3587.99 | H16: 3498.83 | I16: 3225 | J16: 3225 | K16: 3345.95 | L16: 3345.95 | M16: 3345.95 | N16: =SUM(B16:M16) -> 39699.67
A17: Total RENTS | B17: 3225 | C17: 3225 | D17: 3225 | E17: 3225 | F17: 3225 | G17: 3587.99 | H17: 3498.83 | I17: 3225 | J17: 3225 | K17: 3345.95 | L17: 3345.95 | M17: 3345.95 | N17: =SUM(B17:M17) -> 39699.67
A18: Total Operating Income | B18: 3225 | C18: 3225 | D18: 3225 | E18: 3225 | F18: 3225 | G18: 3587.99 | H18: 3498.83 | I18: 3225 | J18: 3225 | K18: 3345.95 | L18: 3345.95 | M18: 3345.95 | N18: =SUM(B18:M18) -> 39699.67
A19: Expense
A20: LEGAL AND OTHER PROFESSIONAL FEES
A21: Insurance | B21: 0 | C21: 5625 | D21: 0 | E21: 0 | F21: 0 | G21: 0 | H21: 0 | I21: 0 | J21: 0 | K21: 0 | L21: 0 | M21: 0 | N21: =SUM(B21:M21) -> 5625
A22: Other | B22: 0 | C22: 0 | D22: 0 | E22: 0 | F22: 0 | G22: 0 | H22: 382 | I22: 0 | J22: 0 | K22: 250 | L22: 0 | M22: 0 | N22: 632
A23: Total LEGAL AND OTHER PROFESSIONAL FEES | B23: 0 | C23: =SUM(C21:C22) -> 5625 | D23: 0 | E23: 0 | F23: 0 | G23: 0 | H23: 382 | I23: 0 | J23: 0 | K23: 250 | L23: 0 | M23: 0 | N23: 632
A24: MANAGEMENT FEES
A25: Management fees | B25: 193.5 | C25: 193.5 | D25: 193.5 | E25: 193.5 | F25: 193.5 | G25: 215.28 | H25: 193.5 | I25: 209.93 | J25: 193.5 | K25: 200.76 | L25: 200.76 | M25: 200.76 | N25: =SUM(B25:M25) -> 2381.99
A26: Total MANAGEMENT FEES | B26: 193.5 | C26: 193.5 | D26: 193.5 | E26: 193.5 | F26: 193.5 | G26: 215.28 | H26: 193.5 | I26: 209.93 | J26: 193.5 | K26: 200.76 | L26: 200.76 | M26: 200.76 | N26: =SUM(B26:M26) -> 2381.99
A27: REPAIRS
A28: Repairs - Other | B28: 0 | C28: 0 | D28: 0 | E28: 0 | F28: 0 | G28: 311.74 | H28: 0 | I28: 0 | J28: 0 | K28: 0 | L28: 0 | M28: 0 | N28: =SUM(B28:M28) -> 311.74
A29: Total REPAIRS | B29: 0 | C29: 0 | D29: 0 | E29: 0 | F29: 0 | G29: 311.74 | H29: 0 | I29: 0 | J29: 0 | K29: 0 | L29: 0 | M29: 0 | N29: =SUM(B29:M29) -> 311.74
A30: TAXES
A31: Property Tax | B31: 0 | C31: 0 | D31: 0 | E31: 3919.12 | F31: 0 | G31: 0 | H31: 0 | I31: 0 | J31: 0 | K31: 0 | L31: 0 | M31: 4167.67 | N31: =SUM(B31:M31) -> 8086.79
A32: Total TAXES | B32: 0 | C32: 0 | D32: 0 | E32: =SUM(E31) -> 3919.12 | F32: 0 | G32: 0 | H32: 0 | I32: 0 | J32: 0 | K32: 0 | L32: 0 | M32: =SUM(M31) -> 4167.67 | N32: =SUM(B32:M32) -> 8086.79
A33: UTILITIES
A34: Water-Sewer | B34: 0 | C34: 0 | D34: 0 | E34: 0 | F34: 255.97 | G34: -127.99 | H34: 273.83 | I34: 0 | J34: 0 | K34: 115.69 | L34: 1.14 | M34: -40 | N34: =SUM(B34:M34) -> 478.64
A35: Total UTILITIES | B35: 0 | C35: 0 | D35: 0 | E35: 0 | F35: 255.97 | G35: -127.99 | H35: 273.83 | I35: 0 | J35: 0 | K35: 115.69 | L35: 1.14 | M35: -40 | N35: =SUM(B35:M35) -> 478.64
A36: CAPITAL EXPENSES
A37: Unit Remodel | B37: 0 | C37: 0 | D37: 0 | E37: 0 | F37: 0 | G37: 0 | H37: 0 | I37: 0 | J37: 33600 | K37: 0 | L37: 0 | M37: 0 | N37: =SUM(B37:M37) -> 33600
A38: Appliances | B38: 0 | C38: 0 | D38: 0 | E38: 0 | F38: 0 | G38: 0 | H38: 781.28 | I38: 0 | J38: 0 | K38: 1103.17 | L38: 31.37 | M38: 641.74 | N38: =SUM(B38:M38) -> 2557.56
A39: Total CAPITAL EXPENSES | B39: 0 | C39: 0 | D39: 0 | E39: 0 | F39: 0 | G39: 0 | H39: 781.28 | I39: 0 | J39: =SUM(J37:J38) -> 33600 | K39: 1103.17 | L39: 31.37 | M39: 641.74 | N39: =SUM(B39:M39) -> 36157.56
A40: Total Operating Expense | B40: =B23+B26+B29+B32+B35+B39 -> 193.5 | C40: 5818.5 | D40: 193.5 | E40: 4112.62 | F40: 449.47 | G40: 399.03 | H40: 1630.61 | I40: 209.93 | J40: 33793.5 | K40: 1669.62 | L40: 233.27 | M40: 4970.17 | N40: =SUM(B40:M40) -> 53673.72
A42: NOI - Net Operating Income | B42: =B18-B40 -> 3031.5 | C42: -2593.5 | D42: 3031.5 | E42: -887.62 | F42: 2775.53 | G42: 3188.96 | H42: 1868.22 | I42: 3015.07 | J42: -30568.5 | K42: 1676.33 | L42: 3112.68 | M42: -1624.22 | N42: =SUM(B42:M42) -> -13974.05
A44: Total Income | B44: =B18 -> 3225 | C44: =C18 -> 3225 | D44: =D18 -> 3225 | E44: =E18 -> 3225 | F44: =F18 -> 3225 | G44: =G18 -> 3587.99 | H44: =H18 -> 3498.83 | I44: =I18 -> 3225 | J44: =J18 -> 3225 | K44: =K18 -> 3345.95 | L44: =L18 -> 3345.95 | M44: =M18 -> 3345.95 | N44: =SUM(B44:M44) -> 39699.67
A45: Total Expense | B45: =B40 -> 193.5 | C45: =C40 -> 5818.5 | D45: =D40 -> 193.5 | E45: =E40 -> 4112.62 | F45: =F40 -> 449.47 | G45: =G40 -> 399.03 | H45: =H40 -> 1630.61 | I45: =I40 -> 209.93 | J45: =J40 -> 33793.5 | K45: =K40 -> 1669.62 | L45: =L40 -> 233.27 | M45: =M40 -> 4970.17 | N45: =SUM(B45:M45) -> 53673.72
A47: Net Income | B47: =B44-B45 -> 3031.5 | C47: =C44-C45 -> -2593.5 | D47: =D44-D45 -> 3031.5 | E47: =E44-E45 -> -887.62 | F47: =F44-F45 -> 2775.53 | G47: =G44-G45 -> 3188.96 | H47: =H44-H45 -> 1868.22 | I47: =I44-I45 -> 3015.07 | J47: =J44-J45 -> -30568.5 | K47: =K44-K45 -> 1676.33 | L47: =L44-L45 -> 3112.68 | M47: =M44-M45 -> -1624.22 | N47: =N44-N45 -> -13974.05
